[Event "POL-chT 1 Liga 2019"]
[Site "Dzwirzyno"]
[Date "2019.09.08"]
[Round "2.1"]
[White "Nayhebaver, Martin"]
[Black "Sopur, Lech"]
[Result "1/2-1/2"]
[ECO "C95"]
[WhiteElo "2491"]
[BlackElo "2417"]
[Annotator "ChessBase"]
[PlyCount "78"]
[EventDate "2019.09.07"]
[EventType "team-tourn"]
[EventCountry "POL"]
[SourceTitle "playchess.com"]
[Source "ChessBase"]
[SourceQuality "1"]
[TimeControl "40/5400+30:1800+30"]

1. e4 {[%emt 0:00:00]} e5 {[%emt 0:00:00]} 2. Nf3 {[%emt 0:00:06]} Nc6 {[%emt 0:00:12]} 3. Bb5 {[%emt 0:00:28]} a6 {[%emt 0:00:14]} 4. Ba4 {[%emt 0:00:24]} Nf6 {[%emt 0:00:14]} 5. O-O {[%emt 0:00:20]} b5 {[%emt 0:00:21]} 6. Bb3 {[%emt 0:00:49]} Be7 {[%emt 0:00:11]} 7. Re1 {[%emt 0:01:14]} d6 {[%emt 0:00:28]} 8. c3 {[%emt 0:00:39]} O-O {[%emt 0:00:11]} 9. h3 {[%emt 0:01:23]} Nb8 {[%emt 0:00:30]} 10. d4 {[%emt 0:00:41]} Nbd7 {[%emt 0:00:10]} 11. c4 {[%emt 0:00:56]} b4 {[%emt 0:14:25]} 12. Bc2 {[%emt 0:08:37]} c5 {[%emt 0:00:38]} 13. dxe5 {[%emt 0:02:21]} dxe5 {[%emt 0:01:32]} 14. Nbd2 {[%emt 0:01:52]} Bb7 {[%emt 0:13:47]} 15. Nf1 {[%emt 0:01:33]} Ne8 {[%emt 0:01:43]} 16. Ba4 {[%emt 0:13:56]} Nd6 {[%emt 0:07:05]} 17. Ng3 {[%emt 0:03:43]} f6 {[%emt 0:06:31]} 18. a3 {[%emt 0:07:06]} a5 {[%emt 0:12:14]} 19. Be3 {[%emt 0:01:56]} Rc8 {[%emt 0:03:42]} 20. axb4 {[%emt 0:01:52]} axb4 {[%emt 0:00:05]} 21. Nd2 {[%emt 0:01:45]} Nb6 {[%emt 0:01:58]} 22. Bc2 {[%emt 0:05:14]} Rf7 {[%emt 0:07:15]} 23. Ra7 {[%emt 0:04:34]} Bf8 {[%emt 0:00:42]} 24. Qg4 {[%emt 0:01:53]} Rcc7 {[%emt 0:02:36]} 25. Qe2 {[%emt 0:04:07]} Bc8 {[%emt 0:00:48]} 26. Ra5 {[%emt 0:01:29]} Be6 {[%emt 0:02:53]} 27. Rxc5 {[%emt 0:04:34]} Rxc5 {[%emt 0:05:45]} 28. Bxc5 {[%emt 0:00:40]} Ndxc4 {[%emt 0:00:47]} 29. Bxf8 {[%emt 0:01:11]} Kxf8 {[%emt 0:01:43]} 30. Nxc4 {[%emt 0:00:55]} Bxc4 {[%emt 0:01:07]} 31. Qe3 {[%emt 0:05:18]} Qd4 {[%emt 0:00:17]} 32. Qc1 {[%emt 0:02:53]} Be6 {[%emt 0:05:21]} 33. Rd1 {[%emt 0:01:52]} Qc5 {[%emt 0:00:06]} 34. Rd8+ {[%emt 0:01:59]} Ke7 {[%emt 0:00:05]} 35. Rg8 {[%emt 0:07:24]} g6 {[%emt 0:02:39]} 36. Qd1 {[%emt 0:11:00]} Rf8 {[%emt 0:03:28]} 37. Rg7+ {[%emt 0:00:11]} Rf7 {[%emt 0:00:22]} 38. Rg8 {[%emt 0:00:13]} Rf8 {[%emt 0:00:25]} 39. Rg7+ {[%emt 0:00:13]} Rf7 1/2-1/2

[Event "POL-chT 1 Liga 2019"]
[Site "Dzwirzyno"]
[Date "2019.09.08"]
[Round "2.3"]
[White "Paszewski, Mateusz"]
[Black "Szmacinski, Slawomir"]
[Result "1-0"]
[ECO "D00"]
[WhiteElo "2297"]
[BlackElo "1848"]
[Annotator "NA"]
[PlyCount "83"]
[EventDate "2019.09.07"]
[EventType "team-tourn"]
[EventCountry "POL"]
[SourceTitle "playchess.com"]
[Source "ChessBase"]
[SourceQuality "1"]
[TimeControl "40/5400+30:1800+30"]

1. d4 {[%emt 0:00:24]} d5 {[%emt 0:00:00]} 2. Bf4 {[%emt 0:00:38]} Nf6 {[%emt 0:00:53]} 3. e3 {[%emt 0:00:26]} e6 {[%emt 0:00:48]} 4. Nd2 {[%emt 0:00:39]} c5 {[%emt 0:01:24]} 5. c3 {[%emt 0:00:10]} Nc6 {[%emt 0:00:47]} 6. Bd3 {[%emt 0:00:29]} Bd6 {[%emt 0:03:12]} 7. Bg3 {[%emt 0:00:35]} O-O {[%emt 0:00:43]} 8. Ngf3 {[%emt 0:00:05]} Re8 {[%emt 0:00:31]} 9. Ne5 {[%emt 0:01:54]} Qc7 {[%emt 0:05:30]} 10. f4 {[%emt 0:01:10]} a6 {[%emt 0:06:20]} 11. Bh4 {[%emt 0:02:16]} Be7 {[%emt 0:03:56]} 12. O-O {[%emt 0:12:37]} b5 {[%emt 0:13:51]} 13. Qf3 {[%emt 0:04:16]} c4 {[%emt 0:04:23]} 14. Bc2 {[%emt 0:02:44]} Rb8 {[%emt 0:00:18]} 15. a3 {[%emt 0:00:56]} g6 {[%emt 0:10:17]} 16. Qh3 {[%emt 0:02:48]} Bb7 {[%emt 0:09:02]} 17. Ndf3 {[%emt 0:09:26]} Ne4 {[%emt 0:11:07]} 18. Bxe4 {[%emt 0:19:32]} dxe4 {[%emt 0:00:21]} 19. Ng5 {[%emt 0:00:03]} Bxg5 {[%emt 0:05:55]} 20. Bxg5 {[%emt 0:00:06]} f5 {[%emt 0:07:30]} 21. Bf6 {[%emt 0:01:42]} Rbc8 {[%emt 0:00:29]} 22. Qh6 {[%emt 0:03:15]} Nxe5 {[%emt 0:01:36]} 23. fxe5 {[%emt 0:01:36]} Qf7 {[%emt 0:01:02]} 24. Kh1 {[%emt 0:09:56]} Rc7 {[%emt 0:00:48]} 25. g4 {[%emt 0:01:51]} Qf8 {[%emt 0:02:27]} 26. Qh3 {[%emt 0:04:28]} Bc6 {[%emt 0:00:58]} 27. Rf2 {[%emt 0:01:06]} Rf7 {[%emt 0:01:11]} 28. Rg1 {[%emt 0:01:21]} Bd7 {[%emt 0:01:21]} 29. gxf5 {[%emt 0:01:12]} Rxf6 {[%emt 0:00:23]} 30. fxg6 {[%emt 0:02:30]} Rxg6 {[%emt 0:00:28]} 31. Rxg6+ {[%emt 0:00:25]} hxg6 {[%emt 0:00:03]} 32. Rxf8+ {[%emt 0:00:04]} Rxf8 {[%emt 0:00:37]} 33. Qg4 {[%emt 0:00:06]} Kg7 {[%emt 0:00:48]} 34. Kg1 {[%emt 0:00:39]} Rf7 {[%emt 0:03:56]} 35. Qxe4 {[%emt 0:00:25]} a5 {[%emt 0:03:23]} 36. Qa8 {[%emt 0:00:21]} a4 {[%emt 0:00:16]} 37. e4 {[%emt 0:00:35]} g5 {[%emt 0:00:23]} 38. Qd8 {[%emt 0:00:16]} Kh7 {[%emt 0:01:06]} 39. Kg2 {[%emt 0:00:17]} g4 {[%emt 0:00:33]} 40. Kg3 {[%emt 0:00:00]} Rg7 {[%emt 0:00:00]} 41. d5 {[%emt 0:00:38]} exd5 {[%emt 0:00:31]} 42. exd5 {[%emt 0:02:40]} 1-0

[Event "POL-chT 1 Liga 2019"]
[Site "Dzwirzyno"]
[Date "2019.09.08"]
[Round "2.4"]
[White "Redlich, Bogdan"]
[Black "Ciesla, Adam"]
[Result "0-1"]
[ECO "A40"]
[WhiteElo "1600"]
[BlackElo "2273"]
[Annotator "NA"]
[PlyCount "68"]
[EventDate "2019.09.07"]
[EventType "team-tourn"]
[EventCountry "POL"]
[SourceTitle "playchess.com"]
[Source "ChessBase"]
[SourceQuality "1"]
[TimeControl "40/5400+30:1800+30"]

1. d4 {[%emt 0:00:00]} g6 {[%emt 0:00:45]} 2. Nf3 {[%emt 0:00:17]} Bg7 {[%emt 0:00:18]} 3. c4 {[%emt 0:01:19]} c5 {[%emt 0:00:28]} 4. d5 {[%emt 0:04:56]} d6 {[%emt 0:01:44]} 5. Nc3 {[%emt 0:01:55]} e6 {[%emt 0:02:51]} 6. g3 {[%emt 0:04:49]} Ne7 {[%emt 0:03:52]} 7. Bg2 {[%emt 0:05:27]} exd5 {[%emt 0:03:47]} 8. cxd5 {[%emt 0:06:03]} a6 {[%emt 0:00:27]} 9. a4 {[%emt 0:01:04]} O-O {[%emt 0:00:16]} 10. O-O {[%emt 0:01:28]} h6 {[%emt 0:08:13]} 11. Nd2 {[%emt 0:09:07]} Nd7 {[%emt 0:07:05]} 12. Nc4 {[%emt 0:03:42]} Nb6 {[%emt 0:01:44]} 13. Na3 {[%emt 0:02:57]} Bd7 {[%emt 0:04:13]} 14. a5 {[%emt 0:05:03]} Nbc8 {[%emt 0:00:44]} 15. Nc4 {[%emt 0:02:11]} Bb5 {[%emt 0:02:52]} 16. Qb3 {[%emt 0:07:49]} Bxc4 {[%emt 0:07:56]} 17. Qxc4 {[%emt 0:00:13]} b5 {[%emt 0:01:06]} 18. axb6 {[%emt 0:01:28]} Nxb6 {[%emt 0:00:49]} 19. Qb3 {[%emt 0:02:27]} Qc7 {[%emt 0:02:49]} 20. Qc2 {[%emt 0:07:00]} Nf5 {[%emt 0:07:13]} 21. e3 {[%emt 0:02:10]} Nd4 {[%emt 0:04:50]} 22. exd4 {[%emt 0:06:52]} cxd4 {[%emt 0:00:09]} 23. Qd3 {[%emt 0:02:09]} dxc3 {[%emt 0:01:09]} 24. bxc3 {[%emt 0:00:18]} a5 {[%emt 0:06:25]} 25. Be3 {[%emt 0:01:24]} Qc4 {[%emt 0:01:20]} 26. Rfd1 {[%emt 0:04:05]} Qxd3 {[%emt 0:02:08]} 27. Rxd3 {[%emt 0:00:05]} Nc4 {[%emt 0:01:03]} 28. Bd4 {[%emt 0:00:40]} Rfc8 {[%emt 0:00:37]} 29. Bxg7 {[%emt 0:01:15]} Kxg7 {[%emt 0:00:03]} 30. Rd4 {[%emt 0:01:29]} Rc5 {[%emt 0:01:59]} 31. Bf1 {[%emt 0:01:43]} Ne5 {[%emt 0:01:31]} 32. Rda4 {[%emt 0:00:41]} Nd7 {[%emt 0:04:35]} 33. Rb1 {[%emt 0:05:28]} Rxc3 {[%emt 0:01:06]} 34. Rb7 {[%emt 0:00:12]} Nc5 {[%emt 0:00:19]} 0-1

[Event "POL-chT 1 Liga 2019"]
[Site "Dzwirzyno"]
[Date "2019.09.08"]
[Round "2.5"]
[White "Tomaszewski, Roman"]
[Black "Kelm, Robert"]
[Result "1-0"]
[ECO "E10"]
[WhiteElo "2195"]
[BlackElo "1585"]
[Annotator "NA"]
[PlyCount "105"]
[EventDate "2019.09.07"]
[EventType "team-tourn"]
[EventCountry "POL"]
[SourceTitle "playchess.com"]
[Source "ChessBase"]
[SourceQuality "1"]
[TimeControl "40/5400+30:1800+30"]

1. d4 {[%emt 0:00:00]} Nf6 {[%emt 0:00:43]} 2. c4 {[%emt 0:00:54]} e6 {[%emt 0:00:52]} 3. Nf3 {[%emt 0:01:03]} d5 {[%emt 0:02:35]} 4. Qc2 {[%emt 0:03:01]} Bb4+ {[%emt 0:04:52]} 5. Nbd2 {[%emt 0:01:50]} Ne4 {[%emt 0:05:30]} 6. e3 {[%emt 0:20:21]} O-O {[%emt 0:03:11]} 7. a3 {[%emt 0:02:55]} Bxd2+ {[%emt 0:02:18]} 8. Nxd2 {[%emt 0:00:47]} f5 {[%emt 0:01:48]} 9. g3 {[%emt 0:09:03]} a5 {[%emt 0:07:38]} 10. b3 {[%emt 0:00:18]} Nd7 {[%emt 0:09:26]} 11. cxd5 {[%emt 0:02:05]} exd5 {[%emt 0:01:45]} 12. Bd3 {[%emt 0:06:51]} Rf6 {[%emt 0:05:57]} 13. f3 {[%emt 0:08:16]} Nxd2 {[%emt 0:19:09]} 14. Bxd2 {[%emt 0:00:30]} Nb6 {[%emt 0:01:24]} 15. a4 {[%emt 0:00:10]} Qd6 {[%emt 0:01:43]} 16. Rc1 {[%emt 0:09:17]} c6 {[%emt 0:02:21]} 17. Qc5 {[%emt 0:02:48]} Qxc5 {[%emt 0:04:32]} 18. Rxc5 {[%emt 0:00:14]} Be6 {[%emt 0:02:06]} 19. Rxa5 {[%emt 0:00:10]} Rff8 {[%emt 0:00:05]} 20. Kf2 {[%emt 0:04:56]} Kf7 {[%emt 0:02:55]} 21. Rxa8 {[%emt 0:00:58]} Rxa8 {[%emt 0:00:43]} 22. h3 {[%emt 0:00:05]} Nd7 {[%emt 0:02:12]} 23. g4 {[%emt 0:00:12]} g6 {[%emt 0:00:03]} 24. Bb4 {[%emt 0:01:41]} h6 {[%emt 0:06:10]} 25. Bd6 {[%emt 0:04:54]} Nf6 {[%emt 0:01:35]} 26. Be5 {[%emt 0:07:28]} Bd7 {[%emt 0:02:27]} 27. Bf4 {[%emt 0:03:43]} Ng8 {[%emt 0:01:06]} 28. Kg3 {[%emt 0:00:55]} Rc8 {[%emt 0:00:16]} 29. Rc1 {[%emt 0:00:32]} Ra8 {[%emt 0:00:38]} 30. Rf1 {[%emt 0:02:06]} Rc8 {[%emt 0:00:08]} 31. Rg1 {[%emt 0:01:51]} Ra8 {[%emt 0:00:50]} 32. Rg2 {[%emt 0:00:24]} Rc8 {[%emt 0:02:21]} 33. Rf2 {[%emt 0:00:41]} Ra8 {[%emt 0:00:21]} 34. h4 {[%emt 0:00:54]} Ke7 {[%emt 0:04:06]} 35. h5 {[%emt 0:02:10]} fxg4 {[%emt 0:01:27]} 36. hxg6 {[%emt 0:00:21]} gxf3 {[%emt 0:00:59]} 37. Rxf3 {[%emt 0:00:09]} Be6 {[%emt 0:00:33]} 38. Be5 {[%emt 0:00:30]} Rc8 {[%emt 0:00:40]} 39. Kh4 {[%emt 0:00:57]} c5 {[%emt 0:00:36]} 40. dxc5 {[%emt 0:00:00]} Rxc5 {[%emt 0:00:00]} 41. Bb2 {[%emt 0:11:13]} Rc8 {[%emt 0:03:07]} 42. Ba3+ {[%emt 0:00:38]} Kd7 {[%emt 0:00:15]} 43. Bb5+ {[%emt 0:01:09]} Kc7 {[%emt 0:00:04]} 44. Bc5 {[%emt 0:05:58]} b6 {[%emt 0:00:20]} 45. Ba3 {[%emt 0:00:49]} Rd8 {[%emt 0:00:26]} 46. Rf7+ {[%emt 0:01:22]} Kb8 {[%emt 0:04:57]} 47. Rg7 {[%emt 0:02:09]} d4 {[%emt 0:04:08]} 48. Bb2 {[%emt 0:01:00]} Bxb3 {[%emt 0:04:44]} 49. Bxd4 {[%emt 0:00:16]} Rf8 {[%emt 0:00:11]} 50. Be5+ {[%emt 0:01:02]} Kc8 {[%emt 0:00:07]} 51. Ba6+ {[%emt 0:00:07]} Kd8 {[%emt 0:00:05]} 52. Bc7+ {[%emt 0:00:07]} Ke8 {[%emt 0:00:03]} 53. Bb5# {[%emt 0:00:04]} 1-0

[Event "POL-chT 1 Liga 2019"]
[Site "Dzwirzyno"]
[Date "2019.09.08"]
[Round "2.6"]
[White "Miturova, Magdalena"]
[Black "Lach, Aleksandra"]
[Result "0-1"]
[ECO "A04"]
[WhiteElo "2219"]
[BlackElo "2173"]
[Annotator "NA"]
[PlyCount "78"]
[EventDate "2019.09.07"]
[EventType "team-tourn"]
[EventCountry "POL"]
[SourceTitle "playchess.com"]
[Source "ChessBase"]
[SourceQuality "1"]
[TimeControl "40/5400+30:1800+30"]

1. Nf3 {[%emt 0:00:00]} c5 {[%emt 0:01:44]} 2. c4 {[%emt 0:00:00]} Nc6 {[%emt 0:00:29]} 3. Nc3 {[%emt 0:00:07]} g6 {[%emt 0:05:27]} 4. e3 {[%emt 0:00:17]} d6 {[%emt 0:08:35]} 5. d4 {[%emt 0:01:27]} Bg4 {[%emt 0:02:28]} 6. Be2 {[%emt 0:11:28]} Bg7 {[%emt 0:08:44]} 7. O-O {[%emt 0:03:35]} Nf6 {[%emt 0:15:55]} 8. b3 {[%emt 0:11:52]} O-O {[%emt 0:06:44]} 9. Bb2 {[%emt 0:00:23]} Bxf3 {[%emt 0:02:12]} 10. Bxf3 {[%emt 0:00:11]} cxd4 {[%emt 0:00:05]} 11. exd4 {[%emt 0:00:23]} Ne8 {[%emt 0:02:47]} 12. d5 {[%emt 0:14:58]} Nd4 {[%emt 0:08:34]} 13. Be4 {[%emt 0:01:26]} f5 {[%emt 0:01:05]} 14. Na4 {[%emt 0:15:08]} Nxb3 {[%emt 0:03:44]} 15. Bxg7 {[%emt 0:00:39]} Nxg7 {[%emt 0:01:39]} 16. axb3 {[%emt 0:00:55]} fxe4 {[%emt 0:00:25]} 17. Qg4 {[%emt 0:04:23]} e3 {[%emt 0:05:25]} 18. fxe3 {[%emt 0:00:12]} Rf6 {[%emt 0:00:21]} 19. Qd4 {[%emt 0:07:00]} Nf5 {[%emt 0:03:19]} 20. Qd3 {[%emt 0:00:37]} a6 {[%emt 0:07:03]} 21. e4 {[%emt 0:01:11]} Nh6 22. c5 {[%emt 0:06:25]} dxc5 {[%emt 0:03:11]} 23. e5 {[%emt 0:05:41]} Rf5 {[%emt 0:02:45]} 24. Rae1 {[%emt 0:00:45]} b5 {[%emt 0:04:48]} 25. Nxc5 {[%emt 0:02:34]} Qb6 {[%emt 0:00:01]} 26. b4 {[%emt 0:00:10]} Rd8 {[%emt 0:01:44]} 27. Kh1 {[%emt 0:01:33]} a5 {[%emt 0:01:48]} 28. Qe4 {[%emt 0:05:29]} axb4 {[%emt 0:02:10]} 29. Ne6 Re8 {[%emt 0:00:33]} 30. Qh4 {[%emt 0:02:10]} Qe3 31. Nf4 {[%emt 0:02:43]} Qd2 {[%emt 0:00:31]} 32. Qxh6 {[%emt 0:01:25]} Rh5 {[%emt 0:00:01]} 33. Re2 {[%emt 0:00:49]} Qxe2 {[%emt 0:00:21]} 34. Nxe2 {[%emt 0:00:22]} Rxh6 {[%emt 0:00:01]} 35. Nd4 {[%emt 0:00:20]} Rh5 {[%emt 0:00:47]} 36. Nc6 {[%emt 0:00:10]} Rf5 {[%emt 0:01:15]} 37. Rd1 {[%emt 0:00:26]} b3 {[%emt 0:00:58]} 38. d6 {[%emt 0:00:19]} exd6 {[%emt 0:00:05]} 39. exd6 {[%emt 0:00:04]} Rd5 {[%emt 0:00:13]} 0-1

[Event "POL-chT 1 Liga 2019"]
[Site "Dzwirzyno"]
[Date "2019.09.08"]
[Round "2.8"]
[White "Lewtak, Damian"]
[Black "Godzwon, Iwo"]
[Result "1/2-1/2"]
[ECO "B40"]
[WhiteElo "2377"]
[BlackElo "2265"]
[Annotator "NA"]
[PlyCount "81"]
[EventDate "2019.09.07"]
[EventType "team-tourn"]
[EventCountry "POL"]
[SourceTitle "playchess.com"]
[Source "ChessBase"]
[SourceQuality "1"]
[TimeControl "40/5400+30:1800+30"]

1. e4 {[%emt 0:00:00]} c5 {[%emt 0:00:00]} 2. Nf3 {[%emt 0:00:00]} e6 {[%emt 0:00:00]} 3. b3 {[%emt 0:00:00]} Nc6 {[%emt 0:03:53]} 4. Bb2 {[%emt 0:00:22]} d5 {[%emt 0:00:03]} 5. Bb5 {[%emt 0:02:48]} dxe4 {[%emt 0:01:38]} 6. Ne5 {[%emt 0:00:59]} Bd7 {[%emt 0:06:33]} 7. Bxc6 {[%emt 0:04:16]} Bxc6 {[%emt 0:00:02]} 8. Nxc6 {[%emt 0:00:54]} bxc6 {[%emt 0:00:03]} 9. Qe2 {[%emt 0:00:07]} Nf6 {[%emt 0:00:25]} 10. Nc3 {[%emt 0:01:42]} Be7 {[%emt 0:00:37]} 11. Nxe4 {[%emt 0:05:07]} O-O {[%emt 0:07:04]} 12. O-O {[%emt 0:10:48]} Nxe4 {[%emt 0:02:28]} 13. Qxe4 {[%emt 0:00:03]} Qxd2 {[%emt 0:03:39]} 14. Rad1 {[%emt 0:00:06]} Qb4 {[%emt 0:04:20]} 15. c4 {[%emt 0:02:00]} Rfd8 {[%emt 0:00:51]} 16. Qxc6 {[%emt 0:03:37]} Qb6 {[%emt 0:04:54]} 17. Qf3 {[%emt 0:08:44]} Qa5 {[%emt 0:07:41]} 18. a3 {[%emt 0:13:16]} Bf8 {[%emt 0:00:34]} 19. g3 {[%emt 0:01:08]} Qb6 {[%emt 0:01:12]} 20. Rxd8 {[%emt 0:00:42]} Rxd8 {[%emt 0:00:04]} 21. Rd1 {[%emt 0:00:08]} f6 {[%emt 0:03:41]} 22. Rxd8 {[%emt 0:06:48]} Qxd8 {[%emt 0:00:03]} 23. Bc3 {[%emt 0:00:19]} Qb6 {[%emt 0:05:54]} 24. Qd1 {[%emt 0:01:33]} Be7 {[%emt 0:00:38]} 25. Qd7 {[%emt 0:08:04]} Kf8 {[%emt 0:00:23]} 26. b4 {[%emt 0:01:54]} cxb4 {[%emt 0:01:19]} 27. axb4 {[%emt 0:00:11]} Bxb4 {[%emt 0:01:33]} 28. Bd4 {[%emt 0:00:23]} Qd6 {[%emt 0:02:09]} 29. Qxa7 {[%emt 0:04:08]} Qe7 {[%emt 0:09:06]} 30. Qb8+ {[%emt 0:01:57]} Kf7 {[%emt 0:00:02]} 31. Qb5 {[%emt 0:00:16]} Qd6 {[%emt 0:01:05]} 32. Be3 {[%emt 0:02:36]} g5 {[%emt 0:01:33]} 33. h4 {[%emt 0:04:04]} h6 {[%emt 0:05:08]} 34. Kh2 {[%emt 0:03:17]} Bc3 {[%emt 0:00:05]} 35. Qb7+ {[%emt 0:05:37]} Qe7 {[%emt 0:01:25]} 36. Qf3 {[%emt 0:01:15]} Qb4 {[%emt 0:01:42]} 37. hxg5 {[%emt 0:02:15]} hxg5 {[%emt 0:00:09]} 38. Qe4 {[%emt 0:02:18]} Be5 {[%emt 0:02:17]} 39. Qh7+ {[%emt 0:00:45]} Ke8 {[%emt 0:00:03]} 40. c5 {[%emt 0:00:00]} Qh4+ {[%emt 0:00:00]} 41. Qxh4 {[%emt 0:00:41]} 1/2-1/2

[Event "POL-chT 1 Liga 2019"]
[Site "Dzwirzyno"]
[Date "2019.09.08"]
[Round "2.10"]
[White "Reza, Wojciech"]
[Black "Kowalski, Maciej"]
[Result "1-0"]
[ECO "A30"]
[WhiteElo "2293"]
[BlackElo "2095"]
[Annotator "NA"]
[PlyCount "79"]
[EventDate "2019.09.07"]
[EventType "team-tourn"]
[EventCountry "POL"]
[SourceTitle "playchess.com"]
[Source "ChessBase"]
[SourceQuality "1"]
[TimeControl "40/5400+30:1800+30"]

1. c4 {[%emt 0:00:00]} c5 {[%emt 0:00:00]} 2. Nf3 {[%emt 0:00:18]} Nc6 {[%emt 0:00:16]} 3. d4 {[%emt 0:01:29]} cxd4 {[%emt 0:03:16]} 4. Nxd4 {[%emt 0:01:16]} Nf6 {[%emt 0:00:34]} 5. g3 {[%emt 0:05:11]} g6 {[%emt 0:06:07]} 6. Bg2 {[%emt 0:02:54]} Bg7 {[%emt 0:00:09]} 7. Nc3 {[%emt 0:02:03]} O-O {[%emt 0:00:12]} 8. Nc2 {[%emt 0:03:08]} d6 {[%emt 0:13:47]} 9. O-O {[%emt 0:22:59]} Qa5 {[%emt 0:11:28]} 10. Qd2 {[%emt 0:10:43]} Qh5 {[%emt 0:08:08]} 11. Qg5 {[%emt 0:03:40]} Na5 {[%emt 0:05:42]} 12. b3 {[%emt 0:07:03]} Bd7 {[%emt 0:12:36]} 13. Qxh5 {[%emt 0:05:14]} Nxh5 {[%emt 0:00:23]} 14. Bd2 {[%emt 0:00:06]} Bc6 {[%emt 0:00:37]} 15. e4 {[%emt 0:02:16]} b6 {[%emt 0:01:31]} 16. Rac1 {[%emt 0:01:11]} e6 {[%emt 0:02:24]} 17. Rfd1 {[%emt 0:02:57]} Rac8 {[%emt 0:04:01]} 18. Nb4 {[%emt 0:00:55]} Rfd8 {[%emt 0:02:05]} 19. Bg5 {[%emt 0:09:33]} Rd7 {[%emt 0:04:25]} 20. Nb5 {[%emt 0:03:53]} Bf8 {[%emt 0:00:43]} 21. Nxc6 {[%emt 0:05:17]} Nxc6 {[%emt 0:00:10]} 22. Rd2 {[%emt 0:01:59]} Ng7 {[%emt 0:01:36]} 23. Rcd1 {[%emt 0:00:16]} Ne8 {[%emt 0:00:41]} 24. Bf4 {[%emt 0:00:29]} e5 {[%emt 0:12:07]} 25. Be3 {[%emt 0:01:11]} Rcd8 {[%emt 0:02:31]} 26. Bh3 {[%emt 0:01:04]} Rb7 {[%emt 0:00:15]} 27. Bg5 {[%emt 0:00:30]} Ra8 {[%emt 0:01:39]} 28. Bf1 {[%emt 0:02:22]} a6 {[%emt 0:00:46]} 29. Nc3 {[%emt 0:00:09]} Nd4 {[%emt 0:00:09]} 30. Kg2 {[%emt 0:00:13]} Nc7 {[%emt 0:00:33]} 31. Be3 {[%emt 0:00:43]} Nce6 {[%emt 0:00:31]} 32. f3 {[%emt 0:02:02]} h5 {[%emt 0:01:54]} 33. Kf2 {[%emt 0:00:36]} Kh7 {[%emt 0:00:14]} 34. Bh3 {[%emt 0:00:13]} f5 {[%emt 0:02:17]} 35. exf5 {[%emt 0:00:17]} gxf5 {[%emt 0:01:11]} 36. Ne2 {[%emt 0:01:02]} Bh6 {[%emt 0:00:19]} 37. Bxd4 {[%emt 0:01:17]} Bxd2 {[%emt 0:01:24]} 38. Bxf5+ {[%emt 0:00:17]} Kg7 {[%emt 0:00:23]} 39. Bxe6 {[%emt 0:01:23]} exd4 {[%emt 0:00:03]} 40. Rxd2 {[%emt 0:00:00]} 1-0

[Event "POL-chT 1 Liga 2019"]
[Site "Dzwirzyno"]
[Date "2019.09.08"]
[Round "2.11"]
[White "Rogala, Milosz"]
[Black "Renkowski, Piotr"]
[Result "0-1"]
[ECO "C44"]
[WhiteElo "1788"]
[BlackElo "2179"]
[Annotator "NA"]
[PlyCount "68"]
[EventDate "2019.09.07"]
[EventType "team-tourn"]
[EventCountry "POL"]
[SourceTitle "playchess.com"]
[Source "ChessBase"]
[SourceQuality "1"]
[TimeControl "40/5400+30:1800+30"]

1. e4 {[%emt 0:00:00]} e5 {[%emt 0:00:00]} 2. Nf3 {[%emt 0:00:00]} Nc6 {[%emt 0:00:00]} 3. d4 {[%emt 0:00:38]} exd4 {[%emt 0:00:01]} 4. Bc4 {[%emt 0:00:52]} Bc5 {[%emt 0:00:22]} 5. Ng5 {[%emt 0:01:47]} Nh6 {[%emt 0:00:58]} 6. Nxf7 {[%emt 0:00:43]} Nxf7 {[%emt 0:00:02]} 7. Bxf7+ {[%emt 0:00:08]} Kxf7 {[%emt 0:00:04]} 8. Qh5+ {[%emt 0:00:07]} g6 {[%emt 0:00:21]} 9. Qxc5 {[%emt 0:06:11]} d5 {[%emt 0:00:16]} 10. Qxd5+ {[%emt 0:13:18]} Qxd5 {[%emt 0:00:11]} 11. exd5 {[%emt 0:00:06]} Nb4 {[%emt 0:03:38]} 12. Na3 {[%emt 0:01:35]} Re8+ {[%emt 0:02:15]} 13. Kd1 {[%emt 0:05:20]} Bf5 {[%emt 0:09:13]} 14. Bd2 {[%emt 0:02:07]} Nxd5 {[%emt 0:01:19]} 15. Nb5 {[%emt 0:01:10]} Rad8 {[%emt 0:06:51]} 16. Re1 {[%emt 0:12:30]} Ne3+ {[%emt 0:04:55]} 17. fxe3 {[%emt 0:09:36]} dxe3 {[%emt 0:00:04]} 18. Rxe3 {[%emt 0:00:54]} Rxe3 {[%emt 0:00:11]} 19. Nc3 {[%emt 0:01:05]} b5 {[%emt 0:08:16]} 20. Kc1 {[%emt 0:03:16]} Re6 {[%emt 0:01:48]} 21. a3 {[%emt 0:01:40]} a5 {[%emt 0:02:15]} 22. b4 {[%emt 0:00:39]} a4 {[%emt 0:00:04]} 23. Bg5 {[%emt 0:01:02]} Re1+ {[%emt 0:02:31]} 24. Kb2 {[%emt 0:00:13]} Rxa1 {[%emt 0:00:03]} 25. Bxd8 {[%emt 0:00:24]} Rg1 {[%emt 0:00:39]} 26. Nxb5 {[%emt 0:03:30]} Rxg2 {[%emt 0:00:16]} 27. Nd4 {[%emt 0:04:25]} c6 {[%emt 0:03:34]} 28. Bc7 {[%emt 0:01:22]} Be4 {[%emt 0:00:41]} 29. Be5 {[%emt 0:01:54]} h5 {[%emt 0:00:58]} 30. Kc3 {[%emt 0:02:36]} g5 {[%emt 0:01:56]} 31. Bg3 {[%emt 0:01:15]} h4 {[%emt 0:00:20]} 32. Bc7 {[%emt 0:00:29]} g4 {[%emt 0:00:19]} 33. Be5 {[%emt 0:00:34]} h3 {[%emt 0:01:02]} 34. Kc4 {[%emt 0:00:25]} g3 {[%emt 0:00:06]} 0-1